[Event "Czech Youth U14 Boys 2024"]
[Site "Kouty nad Desnou"]
[Date "2024.03.16"]
[Round "9.10"]
[White "Pogorelskiy, Boris"]
[Black "Stary, Vojtech"]
[Result "1/2-1/2"]
[ECO "B34"]
[WhiteElo "1747"]
[BlackElo "1950"]
[Annotator "NA RC"]
[PlyCount "46"]
[EventDate "2024.03.10"]
[EventType "swiss"]
[EventCountry "CZE"]
[SourceTitle "playchess.com"]
[Source "ChessBase"]
[SourceQuality "1"]
[TimeControl "40/5400+30:1800+30"]

1. e4 {[%emt 0:00:02]} c5 {[%emt 0:00:05]} 2. Nf3 {[%emt 0:00:04]} Nc6 {[%emt 0:00:03]} 3. d4 {[%emt 0:00:07]} cxd4 {[%emt 0:00:04]} 4. Nxd4 {[%emt 0:00:05]} Nf6 {[%emt 0:00:04]} 5. Nc3 {[%emt 0:00:06]} e5 {[%emt 0:00:08]} 6. Nf3 {[%emt 0:00:23]} Bb4 {[%emt 0:00:18]} 7. Bd3 {[%emt 0:00:42]} d5 {[%emt 0:01:17]} 8. exd5 {[%emt 0:01:29]} Nxd5 {[%emt 0:00:22]} 9. Bd2 {[%emt 0:00:16]} Nxc3 {[%emt 0:01:18]} 10. bxc3 {[%emt 0:01:54]} Bc5 {[%emt 0:01:03]} 11. O-O {[%emt 0:00:10]} O-O {[%emt 0:02:23]} 12. Re1 {[%emt 0:03:55]} Qc7 {[%emt 0:02:06]} 13. Ng5 {[%emt 0:05:29]} h6 {[%emt 0:04:15]} 14. Ne4 {[%emt 0:01:11]} Bb6 {[%emt 0:01:31]} 15. Qh5 {[%emt 0:32:06]} Qe7 {[%emt 0:14:08]} 16. Bxh6 gxh6 {[%emt 0:02:36]} 17. Qxh6 {[%emt 0:04:00]} f6 {[%emt 0:00:45]} 18. Bc4+ {[%emt 0:00:03]} Be6 {[%emt 0:00:36]} 19. Bxe6+ {[%emt 0:00:32]} Qxe6 {[%emt 0:00:05]} 20. Qg6+ {[%emt 0:00:09]} Kh8 {[%emt 0:00:54]} 21. Qh6+ {[%emt 0:00:02]} Kg8 {[%emt 0:00:03]} 22. Qg6+ {[%emt 0:00:04]} Kh8 {[%emt 0:00:06]} 23. Qh6+ Kg8 {[%emt 0:00:30]} 1/2-1/2

[Event "Czech Youth U14 Boys 2024"]
[Site "Kouty nad Desnou"]
[Date "2024.03.16"]
[Round "9.11"]
[White "Gregor, Alexandr"]
[Black "Lorenc, Matej"]
[Result "0-1"]
[ECO "B45"]
[WhiteElo "1777"]
[BlackElo "1637"]
[Annotator "NA RC"]
[PlyCount "104"]
[EventDate "2024.03.10"]
[EventType "swiss"]
[EventCountry "CZE"]
[SourceTitle "playchess.com"]
[Source "ChessBase"]
[SourceQuality "1"]
[TimeControl "40/5400+30:1800+30"]

1. e4 {[%emt 0:00:02]} c5 {[%emt 0:00:08]} 2. Nf3 {[%emt 0:00:04]} Nc6 {[%emt 0:00:06]} 3. d4 {[%emt 0:00:03]} cxd4 {[%emt 0:00:05]} 4. Nxd4 {[%emt 0:00:04]} e6 {[%emt 0:00:06]} 5. Nc3 {[%emt 0:00:09]} Nf6 {[%emt 0:00:09]} 6. Be3 {[%emt 0:00:21]} Be7 {[%emt 0:00:11]} 7. Be2 {[%emt 0:00:24]} d5 {[%emt 0:00:07]} 8. exd5 {[%emt 0:01:25]} Nxd5 {[%emt 0:00:08]} 9. Nxd5 {[%emt 0:02:47]} Qxd5 {[%emt 0:00:08]} 10. Bf3 {[%emt 0:09:55]} Qa5+ {[%emt 0:01:16]} 11. c3 {[%emt 0:02:06]} Qc7 {[%emt 0:00:40]} 12. Qc2 {[%emt 0:05:32]} Nxd4 {[%emt 0:00:55]} 13. Bxd4 {[%emt 0:00:10]} e5 {[%emt 0:00:22]} 14. Be3 {[%emt 0:00:05]} O-O {[%emt 0:00:10]} 15. O-O-O {[%emt 0:00:38]} Be6 {[%emt 0:00:19]} 16. Bd5 {[%emt 0:03:59]} Bxd5 {[%emt 0:00:18]} 17. Rxd5 {[%emt 0:00:02]} Rfd8 {[%emt 0:00:37]} 18. Rhd1 {[%emt 0:01:06]} Rxd5 {[%emt 0:00:16]} 19. Rxd5 {[%emt 0:00:04]} f6 {[%emt 0:01:32]} 20. Qf5 {[%emt 0:07:41]} Rd8 {[%emt 0:01:08]} 21. Qe6+ {[%emt 0:00:37]} Kf8 {[%emt 0:00:43]} 22. Bxa7 {[%emt 0:03:48]} Rxd5 {[%emt 0:00:15]} 23. Qxd5 {[%emt 0:00:05]} b6 {[%emt 0:00:33]} 24. Qa8+ {[%emt 0:00:33]} Bd8 {[%emt 0:00:12]} 25. Qb8 {[%emt 0:04:02]} Ke7 {[%emt 0:00:48]} 26. Qxc7+ {[%emt 0:25:16]} Bxc7 {[%emt 0:00:06]} 27. b4 {[%emt 0:00:16]} Kd7 {[%emt 0:00:49]} 28. c4 {[%emt 0:00:56]} Kc6 {[%emt 0:00:06]} 29. c5 {[%emt 0:00:35]} b5 {[%emt 0:00:05]} 30. Kb2 {[%emt 0:09:30]} Kb7 {[%emt 0:00:18]} 31. Bb6 {[%emt 0:00:05]} Bxb6 {[%emt 0:00:02]} 32. cxb6 {[%emt 0:00:05]} Kxb6 {[%emt 0:00:06]} 33. Kb3 {[%emt 0:01:21]} f5 {[%emt 0:00:09]} 34. a4 bxa4+ {[%emt 0:00:08]} 35. Kxa4 {[%emt 0:01:06]} e4 {[%emt 0:00:22]} 36. g3 {[%emt 0:02:04]} g5 {[%emt 0:00:09]} 37. Kb3 {[%emt 0:02:14]} Kb5 {[%emt 0:00:46]} 38. Kc3 {[%emt 0:00:29]} f4 {[%emt 0:02:11]} 39. Kd4 {[%emt 0:02:57]} e3 {[%emt 0:00:28]} 40. fxe3 {[%emt 0:00:08]} f3 {[%emt 0:00:13]} 41. Ke5 {[%emt 0:34:01]} f2 {[%emt 0:30:17]} 42. Kf5 {[%emt 0:00:06]} f1=Q+ {[%emt 0:00:13]} 43. Kxg5 {[%emt 0:00:06]} Qf3 {[%emt 0:00:14]} 44. Kh6 {[%emt 0:01:00]} Qxe3+ {[%emt 0:00:10]} 45. Kxh7 {[%emt 0:00:06]} Qg1 {[%emt 0:00:11]} 46. h4 {[%emt 0:00:36]} Qxg3 {[%emt 0:00:06]} 47. h5 {[%emt 0:00:03]} Qc7+ {[%emt 0:00:46]} 48. Kg6 {[%emt 0:00:34]} Qd8 {[%emt 0:00:08]} 49. Kg7 {[%emt 0:00:35]} Qe7+ {[%emt 0:00:07]} 50. Kg6 {[%emt 0:00:12]} Qf8 {[%emt 0:00:10]} 51. h6 {[%emt 0:00:04]} Qh8 {[%emt 0:00:14]} 52. h7 {[%emt 0:00:20]} Kxb4 {[%emt 0:00:05]} 0-1

[Event "Czech Youth U14 Boys 2024"]
[Site "Kouty nad Desnou"]
[Date "2024.03.16"]
[Round "9.12"]
[White "Trcalek, Filip"]
[Black "Migalko, Dmitriy"]
[Result "0-1"]
[ECO "B49"]
[WhiteElo "1615"]
[BlackElo "1896"]
[Annotator "NA RC"]
[PlyCount "94"]
[EventDate "2024.03.10"]
[EventType "swiss"]
[EventCountry "CZE"]
[SourceTitle "playchess.com"]
[Source "ChessBase"]
[SourceQuality "1"]
[TimeControl "40/5400+30:1800+30"]

1. e4 {[%emt 0:00:03]} c5 {[%emt 0:00:04]} 2. Nf3 {[%emt 0:00:17]} e6 {[%emt 0:00:14]} 3. d4 {[%emt 0:00:32]} cxd4 {[%emt 0:00:05]} 4. Nxd4 {[%emt 0:00:08]} Nc6 {[%emt 0:00:12]} 5. Nc3 {[%emt 0:00:42]} Qc7 {[%emt 0:00:16]} 6. Be3 {[%emt 0:00:56]} a6 {[%emt 0:00:16]} 7. Be2 {[%emt 0:00:56]} Nf6 {[%emt 0:00:19]} 8. O-O {[%emt 0:00:51]} Be7 {[%emt 0:00:14]} 9. Nb3 {[%emt 0:03:46]} O-O {[%emt 0:01:53]} 10. f4 {[%emt 0:00:35]} d6 {[%emt 0:01:14]} 11. Bf3 {[%emt 0:01:13]} Bd7 {[%emt 0:09:13]} 12. a4 {[%emt 0:03:20]} Rac8 {[%emt 0:07:19]} 13. Kh1 {[%emt 0:06:27]} Be8 {[%emt 0:09:56]} 14. g4 {[%emt 0:01:39]} Nd7 {[%emt 0:01:21]} 15. Bg2 {[%emt 0:10:52]} Nc5 {[%emt 0:03:07]} 16. Nxc5 {[%emt 0:08:10]} dxc5 {[%emt 0:00:14]} 17. g5 {[%emt 0:02:33]} Rd8 {[%emt 0:05:32]} 18. Qe2 {[%emt 0:04:52]} Nd4 {[%emt 0:02:17]} 19. Qf2 {[%emt 0:07:26]} Bc6 {[%emt 0:07:16]} 20. Rad1 {[%emt 0:04:29]} b5 {[%emt 0:10:40]} 21. axb5 {[%emt 0:01:44]} axb5 {[%emt 0:07:07]} 22. Ne2 {[%emt 0:01:21]} Nxe2 {[%emt 0:04:44]} 23. Qxe2 {[%emt 0:01:35]} Qb7 {[%emt 0:01:37]} 24. e5 {[%emt 0:05:39]} c4 {[%emt 0:05:25]} 25. c3 {[%emt 0:02:06]} Rd3 {[%emt 0:02:32]} 26. Bd4 {[%emt 0:04:52]} Ra8 {[%emt 0:02:38]} 27. Bxc6 {[%emt 0:02:51]} Qxc6+ {[%emt 0:00:09]} 28. Qg2 {[%emt 0:00:11]} Qxg2+ {[%emt 0:01:33]} 29. Kxg2 {[%emt 0:00:11]} Rxd1 {[%emt 0:00:27]} 30. Rxd1 {[%emt 0:00:08]} Ra2 {[%emt 0:03:16]} 31. Rb1 {[%emt 0:00:49]} Ba3 {[%emt 0:01:20]} 32. Kg3 {[%emt 0:01:01]} Rxb2 {[%emt 0:00:24]} 33. Ra1 {[%emt 0:00:35]} Rb3 {[%emt 0:00:21]} 34. Rd1 {[%emt 0:00:33]} h6 {[%emt 0:01:22]} 35. gxh6 {[%emt 0:00:50]} gxh6 {[%emt 0:00:31]} 36. Rg1 {[%emt 0:02:04]} Kh7 {[%emt 0:02:56]} 37. Kh4 {[%emt 0:00:45]} Be7+ {[%emt 0:04:04]} 38. Kg4 {[%emt 0:02:18]} b4 {[%emt 0:03:27]} 39. Rg3 {[%emt 0:01:02]} bxc3 {[%emt 0:00:45]} 40. Rxc3 {[%emt 0:02:41]} Rxc3 {[%emt 0:00:29]} 41. Bxc3 {[%emt 0:30:06]} Kg6 {[%emt 0:30:18]} 42. h3 {[%emt 0:00:34]} h5+ {[%emt 0:00:18]} 43. Kg3 {[%emt 0:00:08]} Kf5 {[%emt 0:00:12]} 44. Kf3 {[%emt 0:00:15]} Ba3 {[%emt 0:00:52]} 45. Kg3 {[%emt 0:00:31]} Bc1 {[%emt 0:00:16]} 46. Kh4 {[%emt 0:00:12]} Bxf4 {[%emt 0:00:19]} 47. Kxh5 {[%emt 0:00:10]} Bxe5 {[%emt 0:00:15]} 0-1